fUSD/lending_fUSD_20241222
["ID","MTS","AMOUNT","RATE_DAILY","PERIOD"]
[346273845,1734857444727,-500.0,0.00019178,2]
[346273846,1734857444737,-546.6,0.00019178,2]
[346273847,1734857444746,-3318.15,0.00019178,2]
[346273848,1734857444755,-622.8,0.00019178,2]
[346273849,1734857444764,-500.0,0.00019178,2]
[346273850,1734857444773,-500.0,0.00019178,2]
[346273851,1734857444783,-505.24621785,0.00019178,2]
[346273852,1734857444791,-500.0,0.00019178,2]
[346273853,1734857444801,-430.17847055,0.00019178,2]
[346273854,1734857444810,-500.0,0.00019178,2]
[346273855,1734857444819,-500.0,0.00019178,2]
[346273856,1734857444828,-500.0,0.00019178,2]
[346273857,1734857444837,-504.30534667,0.00019178,2]
[346273858,1734857444846,-500.0,0.00019178,2]
[346273859,1734857444856,-4705.0,0.00019178,2]
[346273860,1734857444866,-1436.52,0.00019178,2]
[346273861,1734857444875,-500.0,0.00019178,2]
[346273862,1734857444885,-500.0,0.00019178,2]
[346273863,1734857444896,-3100.08,0.00019178,2]
[346273864,1734857444906,-500.0,0.00019178,2]
[346273865,1734857444916,-2528.34,0.00019178,2]
[346273866,1734857444927,-500.0,0.00019178,2]
[346273867,1734857444936,-1007.09,0.00019178,2]
[346273868,1734857444947,-501.8694338,0.00019178,2]
[346273869,1734857444956,-500.0,0.00019178,2]
[346273870,1734857444966,-500.0,0.00019178,2]
[346273871,1734857444975,-2951.34,0.00019178,2]
[346273872,1734857444984,-500.0,0.00019178,2]
[346273873,1734857444993,-469.24416306,0.00019178,2]
[346273874,1734857445002,-500.0,0.00019178,2]
[346273875,1734857445012,-502.40543691,0.00019178,2]
[346273876,1734857445021,-500.0,0.00019178,2]
[346273877,1734857445030,-734.37,0.00019178,2]
[346273878,1734857445039,-501.83535924,0.00019178,2]
[346273879,1734857445048,-622.34,0.00019178,2]
[346273880,1734857445058,-503.9457786,0.00019178,2]
[346273881,1734857445067,-1981.03,0.00019178,2]
[346273882,1734857445076,-654.34,0.00019178,2]
[346273883,1734857445085,-500.0,0.00019178,2]
[346273884,1734857445094,-7513.27,0.00019178,2]
[346273885,1734857445103,-500.0,0.00019178,2]
[346273886,1734857445112,-500.0,0.00019178,2]
[346273887,1734857445122,-1080.05,0.00019178,2]
[346273888,1734857445130,-512.28819773,0.00019178,2]
[346273889,1734857445140,-500.0,0.00019178,2]
[346273890,1734857445149,-501.72271429,0.00019178,2]
[346273891,1734857445158,-500.0,0.00019178,2]
[346273892,1734857445168,-1778.13,0.00019178,2]
[346273893,1734857445177,-500.90711174,0.00019178,2]
[346273894,1734857445187,-500.0,0.00019178,2]
[346273895,1734857445196,-500.0,0.00019178,2]
[346273896,1734857445205,-997.48,0.00019178,2]
[346273897,1734857445214,-500.0,0.00019178,2]
[346273898,1734857445226,-894.5,0.00019178,2]
[346273899,1734857445238,-500.0,0.00019178,2]
[346273900,1734857445247,-500.0,0.00019178,2]
[346273901,1734857445256,-500.0,0.00019178,2]
[346273902,1734857445265,-500.0,0.00019178,2]
[346273903,1734857445275,-500.0,0.00019178,2]
[346273904,1734857445284,-501.69465181,0.00019178,2]
[346273905,1734857445293,-1654.62,0.00019178,2]
[346273906,1734857445302,-500.0,0.00019178,2]
[346273907,1734857445311,-500.0,0.00019178,2]
[346273908,1734857445323,-500.0,0.00019178,2]
[346273909,1734857445333,-3042.28,0.00019178,2]
[346273910,1734857445341,-500.0,0.00019178,2]
[346273911,1734857445351,-500.0,0.00019178,2]
[346273912,1734857445359,-500.0,0.00019178,2]
[346273913,1734857445370,-500.0,0.00019178,2]
[346273914,1734857445379,-892.47,0.00019178,2]
[346273915,1734857445388,-9258.18,0.00019178,2]
[346273916,1734857445397,-500.0,0.00019178,2]
[346273917,1734857445407,-500.0,0.00019178,2]
[346273918,1734857445417,-500.0,0.00019178,2]
[346273919,1734857445427,-500.0,0.00019178,2]
[346273920,1734857445436,-500.57364443,0.00019178,2]
[346273921,1734857445445,-500.0,0.00019178,2]
[346273922,1734857445454,-500.0,0.00019178,2]
[346273923,1734857445463,-500.0,0.00019178,2]
[346273924,1734857445477,-9537.34,0.00019178,2]
[346273925,1734857445487,-176.30522097,0.00019178,2]
[346273926,1734857445496,-500.0,0.00019178,2]
[346273928,1734857445505,-842.67,0.00019178,2]
[346273930,1734857445515,-500.0,0.00019178,2]
[346273932,1734857445524,-677.14,0.00019178,2]
[346273934,1734857445533,-500.0,0.00019178,2]
[346273936,1734857445543,-227.00955609,0.00019178,2]
[346273938,1734857445552,-500.0,0.00019178,2]
[346273940,1734857445561,-500.0,0.00019178,2]
[346273942,1734857445570,-1278.76,0.00019178,2]
[346273944,1734857445579,-500.0,0.00019178,2]
[346273946,1734857445589,-500.0,0.00019178,2]
[346273947,1734857445598,-875.88,0.00019178,2]
[346273949,1734857445607,-500.0,0.00019178,2]
[346273951,1734857445616,-1431.36,0.00019178,2]
[346273965,1734857445764,-264.71661844,0.00019178,2]
[346273966,1734857445774,-500.0,0.00019178,2]
[346273967,1734857445784,-5452.06,0.00019178,2]
[346273968,1734857445793,-406.82880126,0.00019178,2]
[346273969,1734857445802,-500.0,0.00019178,2]
[346273970,1734857445811,-500.0,0.00019178,2]
[346273971,1734857445821,-500.0,0.00019178,2]
[346273972,1734857445830,-500.0,0.00019178,2]
[346273973,1734857445839,-501.25150434,0.00019178,2]
[346273974,1734857445848,-501.14337561,0.00019178,2]
[346273975,1734857445858,-2168.55,0.00019178,2]
[346273976,1734857445867,-2978.28,0.00019178,2]
[346273977,1734857445876,-500.0,0.00019178,2]
[346273978,1734857445885,-3032.65,0.00019178,2]
[346273979,1734857445894,-500.0,0.00019178,2]
[346273980,1734857445904,-500.0,0.00019178,2]
[346273981,1734857445913,-534.93907459,0.00019178,2]
[346273982,1734857445923,-500.0,0.00019178,2]
[346273983,1734857445932,-500.0,0.00019178,2]
[346273984,1734857445942,-1590.15,0.00019178,2]
[346273985,1734857445951,-500.0,0.00019178,2]
[346273986,1734857445959,-500.0,0.00019178,2]
[346273987,1734857445972,-2913.51,0.00019178,2]
[346273988,1734857445981,-500.0,0.00019178,2]
[346273989,1734857445991,-3604.17,0.00019178,2]
[346273990,1734857446000,-500.0,0.00019178,2]
[346273991,1734857446008,-930.27,0.00019178,2]
[346273992,1734857446018,-4743.24,0.00019178,2]
[346273993,1734857446028,-4154.64,0.00019178,2]
[346273994,1734857446037,-500.0,0.00019178,2]
[346273995,1734857446046,-507.82476542,0.00019178,2]
[346273997,1734857446055,-500.0,0.00019178,2]
[346273999,1734857446064,-926.05,0.00019178,2]
[346274000,1734857446073,-500.0,0.00019178,2]
[346274001,1734857446082,-629.09,0.00019178,2]
[346274002,1734857446091,-7051.11,0.00019178,2]
[346274003,1734857446099,-500.0,0.00019178,2]
[346274004,1734857446108,-505.04684351,0.00019178,2]
[346274005,1734857446118,-500.0,0.00019178,2]
[346274006,1734857446128,-500.0,0.00019178,2]
[346274007,1734857446137,-2470.81,0.00019178,2]
[346274008,1734857446146,-516.51,0.00019178,2]
[346274009,1734857446156,-500.0,0.00019178,2]
[346274010,1734857446165,-1152.39,0.00019178,2]
[346274011,1734857446174,-1459.71,0.00019178,2]
[346274012,1734857446183,-615.42,0.00019178,2]
[346274013,1734857446192,-500.0,0.00019178,2]
[346274014,1734857446201,-500.0,0.00019178,2]
[346274015,1734857446210,-500.0,0.00019178,2]
[346274016,1734857446220,-500.0,0.00019178,2]
[346274017,1734857446229,-642.03244401,0.00019178,2]
[346274018,1734857446238,-500.0,0.00019178,2]
[346274019,1734857446247,-27381.35,0.00019178,2]
[346274020,1734857446256,-792.58,0.00019178,2]
[346274021,1734857446266,-500.0,0.00019178,2]
[346274022,1734857446275,-898.94,0.00019178,2]
[346274023,1734857446284,-1301.05,0.00019178,2]
[346274024,1734857446294,-638.04766769,0.00019178,2]
[346274025,1734857446303,-1469.91,0.00019178,2]
[346274026,1734857446313,-500.0,0.00019178,2]
[346274027,1734857446326,-504.04182002,0.00019178,2]
[346274028,1734857446337,-500.0,0.00019178,2]
[346274029,1734857446346,-500.0,0.00019178,2]
[346274030,1734857446356,-757.06,0.00019178,2]
[346274031,1734857446366,-506.57,0.00019178,2]
[346274032,1734857446375,-1100.0,0.000192,7]
[346274033,1734857446384,-225.27,0.00019239,2]
[346274034,1734857446394,-1000.0,0.00019259,2]
[346274035,1734857446404,-1300.0,0.000193,7]
[346274036,1734857446413,-282.83,0.00019339,2]
[346274037,1734857446422,-499.99,0.00019339,2]
[346274038,1734857446434,-150.99,0.00019339,2]
[346274039,1734857446446,-9634.48,0.00019339,2]
[346274040,1734857446455,-150.99,0.00019339,2]
[346274041,1734857446465,-177.71246982,0.00019352,2]
[346274042,1734857446476,-2838.5819,0.00019352,2]
[346274043,1734857446485,-200.0,0.000194,7]
[346274044,1734857446494,-12923.58146854,0.00019445,2]
[346274045,1734857446503,-14062.98375413,0.00019449,2]
[346274046,1734857446514,-500.0,0.00019451,2]
[346274047,1734857446524,-500.0,0.00019451,2]
[346274048,1734857446536,-500.0,0.00019451,2]
[346274049,1734857446547,-500.0,0.00019451,2]
[346274050,1734857446556,-500.0,0.00019451,2]
[346274051,1734857446566,-500.0,0.00019451,2]
[346274052,1734857446575,-500.0,0.00019451,2]
[346274053,1734857446584,-500.0,0.00019451,2]
[346274054,1734857446592,-500.0,0.00019451,2]
[346274055,1734857446601,-14062.98375413,0.00019452,2]
[346274056,1734857446610,-500.0,0.00019452,2]
[346274057,1734857446621,-500.0,0.00019452,2]
[346274058,1734857446630,-500.0,0.00019452,2]
[346274059,1734857446640,-500.0,0.00019452,2]
[346274060,1734857446649,-945.97,0.00019452,2]
[346274061,1734857446659,-500.0,0.00019452,2]
[346274062,1734857446669,-500.0,0.00019452,2]
[346274063,1734857446678,-630.82,0.00019452,2]
[346274064,1734857446687,-500.0,0.00019452,2]
[346274065,1734857446696,-500.0,0.00019452,2]
[346274066,1734857446705,-500.0,0.00019452,2]
[346274067,1734857446715,-500.0,0.00019452,2]
[346274068,1734857446725,-500.0,0.00019452,2]
[346274069,1734857446734,-500.0,0.00019452,2]
[346274070,1734857446743,-500.0,0.00019452,2]
[346274071,1734857446752,-500.0,0.00019452,2]
[346274072,1734857446763,-346.24145324,0.00019452,2]
[346274073,1734857446773,-537.0,0.00019452,2]
[346274074,1734857446784,-500.0,0.00019452,2]
[346274075,1734857446795,-500.0,0.00019452,2]
[346274076,1734857446805,-500.0,0.00019452,2]
[346274077,1734857446815,-700.0,0.00019452,2]
[346274078,1734857446826,-500.0,0.00019452,2]
[346274079,1734857446836,-500.0,0.00019452,2]
[346274080,1734857446848,-500.0,0.00019452,2]
[346274081,1734857446859,-500.0,0.00019452,2]
[346274082,1734857446869,-500.0,0.00019452,2]
[346274083,1734857446878,-500.0,0.00019452,2]
[346274084,1734857446888,-500.0,0.00019452,2]
[346274085,1734857446897,-594.57854947,0.00019452,2]
[346274086,1734857446907,-500.0,0.00019452,2]
[346274087,1734857446918,-500.0,0.00019452,2]
[346274088,1734857446928,-500.0,0.00019452,2]
[346274089,1734857446938,-500.0,0.00019452,2]
[346274090,1734857446947,-439.833172,0.00019452,2]
[346274091,1734857446959,-500.0,0.00019452,2]
[346274092,1734857446969,-612.331633,0.00019452,2]
[346274093,1734857446978,-500.0,0.00019452,2]
[346274094,1734857446987,-500.0,0.00019452,2]
[346274095,1734857446996,-576.17,0.00019452,2]
[346274096,1734857447004,-500.0,0.00019452,2]
[346274097,1734857447014,-500.0,0.00019452,2]
[346274098,1734857447024,-500.0,0.00019452,2]
[346274099,1734857447033,-500.0,0.00019452,2]
[346274100,1734857447042,-500.0,0.00019452,2]
[346274101,1734857447051,-500.0,0.00019452,2]
[346274102,1734857447060,-500.0,0.00019452,2]
[346274103,1734857447069,-500.0,0.00019452,2]
[346274104,1734857447078,-500.0,0.00019452,2]
[346274105,1734857447087,-500.0,0.00019452,2]
[346274106,1734857447097,-500.0,0.00019452,2]
[346274107,1734857447106,-500.0,0.00019452,2]
[346274108,1734857447115,-1492.33,0.00019452,2]
[346274109,1734857447124,-614.94479991,0.00019452,2]
[346274110,1734857447133,-500.0,0.00019452,2]
[346274111,1734857447142,-500.0,0.00019452,2]
[346274112,1734857447151,-500.0,0.00019452,2]
[346274113,1734857447160,-500.0,0.00019452,2]
[346274114,1734857447170,-500.0,0.00019452,2]
[346274115,1734857447179,-500.0,0.00019452,2]
[346274116,1734857447188,-534.36,0.00019452,2]
[346274117,1734857447198,-500.0,0.00019452,2]
[346274118,1734857447207,-500.0,0.00019452,2]
[346274119,1734857447219,-500.0,0.00019452,2]
[346274120,1734857447228,-500.0,0.00019452,2]
[346274121,1734857447237,-500.0,0.00019452,2]
[346274122,1734857447246,-500.0,0.00019452,2]
[346274123,1734857447255,-185.52,0.00019452,2]
[346274124,1734857447265,-500.0,0.00019452,2]
[346274125,1734857447274,-500.0,0.00019452,2]
[346274126,1734857447284,-500.0,0.00019452,2]
[346274127,1734857447295,-772.05,0.00019452,2]
[346274128,1734857447305,-748.97,0.00019452,2]
[346274129,1734857447315,-500.0,0.00019452,2]
[346274130,1734857447327,-500.0,0.00019452,2]
[346274131,1734857447336,-500.0,0.00019452,2]
[346274132,1734857447347,-500.0,0.00019452,2]
[346274133,1734857447357,-500.0,0.00019452,2]
[346274134,1734857447366,-500.0,0.00019452,2]
[346274135,1734857447376,-500.0,0.00019452,2]
[346274136,1734857447385,-500.0,0.00019452,2]
[346274137,1734857447395,-500.0,0.00019452,2]
[346274138,1734857447404,-500.0,0.00019452,2]
[346274139,1734857447414,-500.0,0.00019452,2]
[346274140,1734857447423,-500.0,0.00019452,2]
[346274141,1734857447432,-500.0,0.00019452,2]
[346274142,1734857447441,-570.91,0.00019452,2]
[346274143,1734857447450,-500.0,0.00019452,2]
[346274144,1734857447461,-500.0,0.00019452,2]
[346274145,1734857447471,-504.55489268,0.00019452,2]
[346274146,1734857447481,-500.0,0.00019452,2]
[346274147,1734857447490,-500.0,0.00019452,2]
[346274148,1734857447499,-500.0,0.00019452,2]
[346274149,1734857447509,-500.0,0.00019452,2]
[346274150,1734857447519,-500.0,0.00019452,2]
[346274151,1734857447529,-500.0,0.00019452,2]
[346274152,1734857447540,-500.0,0.00019452,2]
[346274153,1734857447550,-459.14430954,0.00019452,2]
[346274154,1734857447559,-500.0,0.00019452,2]
[346274155,1734857447568,-501.38983517,0.00019452,2]
[346274156,1734857447578,-500.0,0.00019452,2]
[346274157,1734857447589,-500.0,0.00019452,2]
[346274158,1734857447599,-309.94813458,0.00019452,2]
[346274159,1734857447610,-500.0,0.00019452,2]
[346274160,1734857447620,-637.73,0.00019452,2]
[346274161,1734857447630,-500.0,0.00019452,2]
[346274162,1734857447639,-500.0,0.00019452,2]
[346274163,1734857447648,-500.0,0.00019452,2]
[346274164,1734857447659,-501.51566609,0.00019452,2]
[346274165,1734857447667,-500.0,0.00019452,2]
[346274166,1734857447677,-500.0,0.00019452,2]
[346274167,1734857447687,-500.0,0.00019452,2]
[346274168,1734857447697,-500.0,0.00019452,2]
[346274169,1734857447709,-500.0,0.00019452,2]
[346274170,1734857447720,-501.56486231,0.00019452,2]
[346274171,1734857447729,-500.0,0.00019452,2]
[346274172,1734857447737,-500.0,0.00019452,2]
[346274173,1734857447747,-500.0,0.00019452,2]
[346274174,1734857447756,-500.0,0.00019452,2]
[346274175,1734857447765,-530.18,0.00019452,2]
[346274176,1734857447774,-500.0,0.00019452,2]
[346274177,1734857447783,-500.0,0.00019452,2]
[346274178,1734857447792,-500.0,0.00019452,2]
[346274179,1734857447801,-500.0,0.00019452,2]
[346274180,1734857447811,-506.38465763,0.00019452,2]
[346274181,1734857447821,-304.86260889,0.00019452,2]
[346274182,1734857447831,-500.0,0.00019452,2]
[346274183,1734857447841,-500.0,0.00019452,2]
[346274184,1734857447852,-500.0,0.00019452,2]
[346274185,1734857447863,-500.0,0.00019452,2]
[346274186,1734857447871,-500.0,0.00019452,2]
[346274187,1734857447882,-500.0,0.00019452,2]
[346274188,1734857447892,-500.0,0.00019452,2]
[346274189,1734857447901,-500.0,0.00019452,2]
[346274190,1734857447910,-500.0,0.00019452,2]
[346274191,1734857447919,-500.0,0.00019452,2]
[346274192,1734857447930,-500.0,0.00019452,2]
[346274193,1734857447939,-500.0,0.00019452,2]
[346274194,1734857447947,-500.0,0.00019452,2]
[346274195,1734857447957,-500.0,0.00019452,2]
[346274196,1734857447966,-511.0807118,0.00019452,2]
[346274197,1734857447976,-590.75,0.00019452,2]
[346274198,1734857447986,-500.0,0.00019452,2]
[346274199,1734857447995,-500.0,0.00019452,2]
[346274200,1734857448004,-934.02,0.00019452,2]
[346274201,1734857448014,-500.0,0.00019452,2]
[346274202,1734857448023,-500.0,0.00019452,2]
[346274203,1734857448032,-500.0,0.00019452,2]
[346274204,1734857448041,-1203.18,0.00019452,2]
[346274205,1734857448050,-500.0,0.00019452,2]
[346274206,1734857448060,-503.62,0.00019452,2]
[346274207,1734857448069,-500.0,0.00019452,2]
[346274208,1734857448078,-500.0,0.00019452,2]
[346274209,1734857448088,-500.0,0.00019452,2]
[346274210,1734857448101,-627.29,0.00019452,2]
[346274211,1734857448110,-500.0,0.00019452,2]
[346274212,1734857448119,-500.0,0.00019452,2]
[346274213,1734857448128,-500.0,0.00019452,2]
[346274214,1734857448137,-500.0,0.00019452,2]
[346274215,1734857448146,-500.0,0.00019452,2]
[346274216,1734857448154,-500.0,0.00019452,2]
[346274217,1734857448163,-500.0,0.00019452,2]
[346274218,1734857448172,-507.24,0.00019452,2]
[346274219,1734857448181,-500.0,0.00019452,2]
[346274220,1734857448190,-500.0,0.00019452,2]
[346274221,1734857448199,-500.0,0.00019452,2]
[346274222,1734857448208,-500.0,0.00019452,2]
[346274223,1734857448218,-500.0,0.00019452,2]
[346274224,1734857448228,-563.85,0.00019452,2]
[346274225,1734857448237,-500.0,0.00019452,2]
[346274226,1734857448247,-181.59753365,0.00019452,2]
[346274227,1734857448256,-500.0,0.00019452,2]
[346274228,1734857448265,-500.0,0.00019452,2]
[346274229,1734857448275,-500.0,0.00019452,2]
[346274230,1734857448284,-500.0,0.00019452,2]
[346274231,1734857448292,-500.0,0.00019452,2]
[346274233,1734857448301,-500.0,0.00019452,2]
[346274234,1734857448310,-500.0,0.00019452,2]
[346274235,1734857448322,-500.97,0.00019452,2]
[346274237,1734857448331,-500.0,0.00019452,2]
[346274238,1734857448342,-500.0,0.00019452,2]
[346274239,1734857448351,-500.0,0.00019452,2]
[346274241,1734857448362,-221.89630623,0.00019452,2]
[346274242,1734857448371,-500.0,0.00019452,2]
[346274243,1734857448381,-500.0,0.00019452,2]
[346274244,1734857448390,-500.0,0.00019452,2]
[346274246,1734857448399,-500.0,0.00019452,2]
[346274247,1734857448409,-500.0,0.00019452,2]
[346274248,1734857448418,-500.0,0.00019452,2]
[346274250,1734857448427,-402.74,0.00019452,2]
[346274251,1734857448436,-937.21,0.00019452,2]
[346274252,1734857448446,-500.0,0.00019452,2]
[346274253,1734857448455,-500.0,0.00019452,2]
[346274255,1734857448464,-500.0,0.00019452,2]
[346274256,1734857448475,-514.28068037,0.00019452,2]
[346274259,1734857448622,-500.0,0.00019452,2]
[346274260,1734857448632,-500.0,0.00019452,2]
[346274261,1734857448642,-500.0,0.00019452,2]
[346274262,1734857448651,-500.0,0.00019452,2]
[346274263,1734857448661,-656.43,0.00019452,2]
[346274264,1734857448670,-500.0,0.00019452,2]
[346274265,1734857448679,-500.0,0.00019452,2]
[346274266,1734857448689,-500.0,0.00019452,2]
[346274267,1734857448698,-1347.77,0.00019452,2]
[346274268,1734857448707,-500.0,0.00019452,2]
[346274269,1734857448718,-500.0,0.00019452,2]
[346274270,1734857448727,-500.0,0.00019452,2]
[346274271,1734857448736,-677.07,0.00019452,2]
[346274272,1734857448745,-500.0,0.00019452,2]
[346274273,1734857448754,-500.0,0.00019452,2]
[346274274,1734857448763,-510.95945193,0.00019452,2]
[346274275,1734857448772,-564.34639497,0.00019452,2]
[346274276,1734857448782,-500.0,0.00019452,2]
[346274277,1734857448791,-500.0,0.00019452,2]
[346274278,1734857448800,-500.0,0.00019452,2]
[346274279,1734857448810,-500.0,0.00019452,2]
[346274280,1734857448819,-500.0,0.00019452,2]
[346274281,1734857448828,-500.0,0.00019452,2]
[346274282,1734857448837,-500.0,0.00019452,2]
[346274283,1734857448845,-500.0,0.00019452,2]
[346274284,1734857448854,-500.0,0.00019452,2]
[346274285,1734857448863,-500.0,0.00019452,2]
[346274286,1734857448872,-500.0,0.00019452,2]
[346274287,1734857448882,-521.08341724,0.00019452,2]
[346274288,1734857448891,-500.0,0.00019452,2]
[346274289,1734857448900,-500.0,0.00019452,2]
[346274290,1734857448909,-500.0,0.00019452,2]
[346274291,1734857448918,-450.0,0.00019452,2]
[346274292,1734857448928,-500.0,0.00019452,2]
[346274293,1734857448938,-500.0,0.00019452,2]
[346274294,1734857448947,-500.0,0.00019452,2]
[346274295,1734857448956,-507.06986069,0.00019452,2]
[346274296,1734857448965,-500.0,0.00019452,2]
[346274297,1734857448975,-500.0,0.00019452,2]
[346274298,1734857448984,-506.93603139,0.00019452,2]
[346274299,1734857448993,-500.0,0.00019452,2]
[346274300,1734857449002,-500.0,0.00019452,2]
[346274301,1734857449011,-500.0,0.00019452,2]
[346274302,1734857449020,-543.18,0.00019452,2]
[346274303,1734857449029,-500.0,0.00019452,2]
[346274304,1734857449039,-513.1577004,0.00019452,2]
[346274305,1734857449049,-500.0,0.00019452,2]
[346274306,1734857449059,-500.0,0.00019452,2]
[346274307,1734857449068,-508.2448163,0.00019452,2]
[346274308,1734857449077,-500.0,0.00019452,2]
[346274309,1734857449087,-500.0,0.00019452,2]
[346274310,1734857449096,-500.0,0.00019452,2]
[346274311,1734857449105,-501.98,0.00019452,2]
[346274312,1734857449114,-500.0,0.00019452,2]
[346274313,1734857449123,-500.0,0.00019452,2]
[346274314,1734857449133,-721.15,0.00019452,2]
[346274315,1734857449142,-500.0,0.00019452,2]
[346274316,1734857449152,-500.0,0.00019452,2]
[346274317,1734857449161,-503.78489118,0.00019452,2]
[346274318,1734857449170,-502.52791862,0.00019452,2]
[346274319,1734857449180,-500.0,0.00019452,2]
[346274320,1734857449189,-500.0,0.00019452,2]
[346274321,1734857449199,-506.49508603,0.00019452,2]
[346274322,1734857449208,-500.0,0.00019452,2]
[346274323,1734857449218,-500.0,0.00019452,2]
[346274324,1734857449227,-500.0,0.00019452,2]
[346274325,1734857449237,-500.0,0.00019452,2]
[346274326,1734857449246,-500.0,0.00019452,2]
[346274327,1734857449255,-500.0,0.00019452,2]
[346274328,1734857449264,-500.0,0.00019452,2]
[346274329,1734857449273,-500.0,0.00019452,2]
[346274330,1734857449282,-500.0,0.00019452,2]
[346274331,1734857449291,-500.0,0.00019452,2]
[346274332,1734857449301,-500.0,0.00019452,2]
[346274333,1734857449311,-500.0,0.00019452,2]
[346274334,1734857449324,-500.0,0.00019452,2]
[346274335,1734857449333,-500.0,0.00019452,2]
[346274336,1734857449342,-500.0,0.00019452,2]
[346274337,1734857449352,-500.0,0.00019452,2]
[346274338,1734857449363,-500.0,0.00019452,2]
[346274339,1734857449372,-500.0,0.00019452,2]
[346274340,1734857449381,-500.0,0.00019452,2]
[346274341,1734857449391,-500.0,0.00019452,2]
[346274342,1734857449402,-500.0,0.00019452,2]
[346274343,1734857449411,-500.0,0.00019452,2]
[346274344,1734857449421,-500.0,0.00019452,2]
[346274345,1734857449430,-500.0,0.00019452,2]
[346274346,1734857449440,-651.7,0.00019452,2]
[346274347,1734857449449,-634.21,0.00019452,2]
[346274348,1734857449459,-507.97207725,0.00019452,2]
[346274349,1734857449469,-504.88244364,0.00019452,2]
[346274350,1734857449478,-1222.26,0.00019452,2]
[346274351,1734857449487,-500.0,0.00019452,2]
[346274352,1734857449496,-3736.49,0.00019452,2]
[346274353,1734857449506,-1271.88,0.00019452,2]
[346274354,1734857449515,-500.0,0.00019452,2]
[346274355,1734857449525,-790.01,0.00019452,2]
[346274356,1734857449534,-500.0,0.00019452,2]
[346274357,1734857449543,-500.0,0.00019452,2]
[346274358,1734857449555,-500.0,0.00019452,2]
[346274359,1734857449564,-500.0,0.00019452,2]
[346274360,1734857449573,-500.0,0.00019452,2]
[346274361,1734857449584,-728.79,0.00019452,2]
[346274362,1734857449594,-500.0,0.00019452,2]
[346274363,1734857449606,-500.0,0.00019452,2]
[346274364,1734857449616,-500.0,0.00019452,2]
[346274365,1734857449627,-500.0,0.00019452,2]
[346274366,1734857449638,-500.0,0.00019452,2]
[346274367,1734857449647,-1167.08,0.00019452,2]
[346274368,1734857449657,-1214.41,0.00019452,2]
[346274369,1734857449666,-968.45,0.00019452,2]
[346274370,1734857449677,-500.0,0.00019452,2]
[346274371,1734857449687,-500.0,0.00019452,2]
[346274372,1734857449698,-500.0,0.00019452,2]
[346274373,1734857449708,-500.0,0.00019452,2]
[346274374,1734857449719,-500.0,0.00019452,2]
[346274375,1734857449729,-230.94993866,0.00019452,2]
[346274376,1734857449739,-567.82,0.00019452,2]
[346274377,1734857449748,-993.2,0.00019452,2]
[346274378,1734857449759,-503.76368822,0.00019452,2]
[346274379,1734857449769,-830.47,0.00019452,2]